lending/lending_fUSD_20260110
["ID","MTS","AMOUNT","RATE_DAILY","PERIOD"]
[401193857,1768035048139,-250.0,0.00017002,2]
[401193858,1768035048149,-525.94323817,0.00017002,2]
[401193859,1768035048159,-500.0,0.00017002,2]
[401193860,1768035048169,-250.0,0.00017002,2]
[401193861,1768035048179,-500.0,0.00017002,2]
[401193862,1768035048189,-250.0,0.00017002,2]
[401193863,1768035048199,-250.0,0.00017002,2]
[401193864,1768035048209,-724.98153853,0.00017002,2]
[401193865,1768035048219,-250.0,0.00017002,2]
[401193866,1768035048228,-250.0,0.00017002,2]
[401193867,1768035048237,-496.47127164,0.00017002,2]
[401193868,1768035048247,-268.55828979,0.00017002,2]
[401193869,1768035048256,-1000.0,0.00017015,2]
[401193870,1768035048266,-263.75602621,0.00017018,2]
[401193871,1768035048276,-189.54348929,0.00017018,2]
[401193872,1768035048286,-255.68743637,0.00017018,2]
[401193873,1768035048296,-150.0,0.00017018,2]
[401193874,1768035048306,-229.31905987,0.00017018,2]
[401193875,1768035048315,-216.87423394,0.00017018,2]
[401193876,1768035048325,-178.71892515,0.00017018,2]
[401193877,1768035048334,-151.48,0.00017023,2]
[401193878,1768035048345,-150.0,0.00017026,2]
[401193879,1768035048355,-150.0,0.00017031,2]
[401193880,1768035048364,-263.75602621,0.00017036,2]
[401193881,1768035048374,-189.54348929,0.00017036,2]
[401193882,1768035048384,-255.68743637,0.00017036,2]
[401193883,1768035048393,-229.31905987,0.00017036,2]
[401193884,1768035048404,-216.87423394,0.00017036,2]
[401193885,1768035048414,-178.71892515,0.00017036,2]
[401193886,1768035048424,-263.75602621,0.00017055,2]
[401193887,1768035048434,-189.54348929,0.00017055,2]
[401193888,1768035048444,-255.68743637,0.00017055,2]
[401193889,1768035048454,-229.31905987,0.00017055,2]
[401193890,1768035048464,-216.87423394,0.00017055,2]
[401193891,1768035048474,-178.71892515,0.00017055,2]
[401193892,1768035048485,-150.0,0.00017056,2]
[401193893,1768035048495,-8565.75555911,0.00017057,2]
[401193894,1768035048504,-150.0,0.00017059,2]
[401193895,1768035048515,-150.0,0.00017065,2]
[401193896,1768035048525,-150.0,0.00017067,2]
[401193897,1768035048535,-263.75602621,0.00017073,2]
[401193898,1768035048545,-189.54348929,0.00017073,2]
[401193899,1768035048556,-255.68743637,0.00017073,2]
[401193900,1768035048566,-229.31905987,0.00017073,2]
[401193901,1768035048577,-216.87423394,0.00017073,2]
[401193902,1768035048587,-178.71892515,0.00017073,2]
[401193903,1768035048596,-3103.92597286,0.00017079,2]
[401193904,1768035048607,-150.0,0.00017085,2]
[401193905,1768035048617,-263.75602621,0.00017091,2]
[401193906,1768035048629,-189.54348929,0.00017091,2]
[401193907,1768035048639,-255.68743637,0.00017091,2]
[401193908,1768035048650,-229.31905987,0.00017091,2]
[401193909,1768035048659,-216.87423394,0.00017091,2]
[401193910,1768035048669,-178.71892515,0.00017091,2]
[401193911,1768035048679,-150.0,0.000171,2]
[401193912,1768035048688,-150.0,0.000171,2]
[401193913,1768035048697,-150.0,0.000171,2]
[401193914,1768035048707,-150.0,0.000171,2]
[401193915,1768035048716,-1069.8949683,0.000171,2]
[401193916,1768035048726,-500.0,0.00017108,2]
[401193917,1768035048737,-263.75602621,0.00017109,2]
[401193918,1768035048747,-189.54348929,0.00017109,2]
[401193919,1768035048757,-255.68743637,0.00017109,2]
[401193920,1768035048769,-229.31905987,0.00017109,2]
[401193921,1768035048779,-216.87423394,0.00017109,2]
[401193922,1768035048789,-178.71892515,0.00017109,2]
[401193923,1768035048799,-8882.6885148,0.00017112,2]
[401193924,1768035048808,-150.0,0.00017115,2]
[401193925,1768035048818,-433.0,0.00017121,2]
[401193926,1768035048828,-5223.79508018,0.00017125,2]
[401193927,1768035048838,-263.75602621,0.00017127,2]
[401193928,1768035048847,-189.54348929,0.00017127,2]
[401193929,1768035048857,-255.68743637,0.00017127,2]
[401193930,1768035048867,-229.31905987,0.00017127,2]
[401193931,1768035048955,-216.87423394,0.00017127,2]
[401193932,1768035048965,-178.71892515,0.00017127,2]
[401193933,1768035048974,-1000.0,0.00017133,2]
[401193934,1768035048983,-150.0,0.00017133,2]
[401193935,1768035048994,-150.0,0.00017135,2]
[401193936,1768035049003,-150.0,0.00017141,2]
[401193937,1768035049013,-150.0,0.00017144,2]
[401193938,1768035049022,-263.75602621,0.00017145,2]
[401193939,1768035049032,-189.54348929,0.00017145,2]
[401193940,1768035049044,-255.68743637,0.00017145,2]
[401193941,1768035049054,-229.31905987,0.00017145,2]
[401193942,1768035049063,-216.87423394,0.00017145,2]
[401193943,1768035049074,-178.71892515,0.00017145,2]
[401193944,1768035049084,-263.75602621,0.00017164,2]
[401193945,1768035049096,-189.54348929,0.00017164,2]
[401193946,1768035049109,-255.68743637,0.00017164,2]
[401193947,1768035049120,-229.31905987,0.00017164,2]
[401193948,1768035049133,-216.87423394,0.00017164,2]
[401193949,1768035049144,-178.71892515,0.00017164,2]
[401193950,1768035049154,-659.3281205,0.00017166,2]
[401193951,1768035049163,-805.55508344,0.00017167,2]
[401193952,1768035049175,-150.0,0.00017169,2]
[401193953,1768035049186,-150.0,0.00017174,2]
[401193954,1768035049196,-200.0,0.00017174,2]
[401193955,1768035049207,-263.75602621,0.00017182,2]
[401193956,1768035049217,-189.54348929,0.00017182,2]
[401193957,1768035049227,-255.68743637,0.00017182,2]
[401193958,1768035049237,-150.0,0.00017182,2]
[401193959,1768035049247,-229.31905987,0.00017182,2]
[401193960,1768035049257,-216.87423394,0.00017182,2]
[401193961,1768035049267,-178.71892515,0.00017182,2]
[401193962,1768035049277,-561.2,0.0001719,2]
[401193963,1768035049287,-263.75602621,0.000172,2]
[401193964,1768035049296,-189.54348929,0.000172,2]
[401193965,1768035049306,-255.68743637,0.000172,2]
[401193966,1768035049315,-150.0,0.000172,2]
[401193967,1768035049325,-229.31905987,0.000172,2]
[401193968,1768035049335,-216.87423394,0.000172,2]
[401193969,1768035049344,-150.0,0.000172,2]
[401193970,1768035049356,-150.0,0.000172,2]
[401193971,1768035049368,-178.71892515,0.000172,2]
[401193972,1768035049379,-150.0,0.00017203,2]
[401193973,1768035049388,-150.0,0.00017204,2]
[401193974,1768035049399,-150.0,0.00017212,2]
[401193975,1768035049410,-263.75602621,0.00017218,2]
[401193976,1768035049420,-189.54348929,0.00017218,2]
[401193977,1768035049431,-255.68743637,0.00017218,2]
[401193978,1768035049442,-229.31905987,0.00017218,2]
[401193979,1768035049451,-216.87423394,0.00017218,2]
[401193980,1768035049461,-178.71892515,0.00017218,2]
[401193981,1768035049471,-150.0,0.00017223,2]
[401193982,1768035049480,-433.0,0.00017226,2]
[401193983,1768035049491,-150.0,0.00017233,2]
[401193984,1768035049500,-1000.0,0.00017233,2]
[401193985,1768035049510,-263.75602621,0.00017236,2]
[401193986,1768035049519,-189.54348929,0.00017236,2]
[401193987,1768035049531,-255.68743637,0.00017236,2]
[401193988,1768035049541,-229.31905987,0.00017236,2]
[401193989,1768035049552,-216.87423394,0.00017236,2]
[401193990,1768035049562,-178.71892515,0.00017236,2]
[401193991,1768035049572,-150.0,0.00017238,2]
[401193992,1768035049582,-1000.0,0.00017239,2]
[401193993,1768035049592,-263.75602621,0.00017255,2]
[401193994,1768035049601,-189.54348929,0.00017255,2]
[401193995,1768035049612,-255.68743637,0.00017255,2]
[401193996,1768035049623,-229.31905987,0.00017255,2]
[401193997,1768035049632,-216.87423394,0.00017255,2]
[401193998,1768035049642,-178.71892515,0.00017255,2]
[401193999,1768035049652,-150.0,0.00017262,2]
[401194000,1768035049662,-150.0,0.00017264,2]
[401194001,1768035049671,-561.2,0.00017264,2]
[401194002,1768035049681,-150.0,0.00017267,2]
[401194003,1768035049691,-263.75602621,0.00017273,2]
[401194004,1768035049700,-189.54348929,0.00017273,2]
[401194005,1768035049710,-255.68743637,0.00017273,2]
[401194006,1768035049720,-229.31905987,0.00017273,2]
[401194007,1768035049729,-216.87423394,0.00017273,2]
[401194008,1768035049739,-178.71892515,0.00017273,2]
[401194009,1768035049749,-150.0,0.00017273,2]
[401194010,1768035049758,-150.0,0.0001728,2]
[401194011,1768035049767,-263.75602621,0.00017291,2]
[401194012,1768035049776,-189.54348929,0.00017291,2]
[401194013,1768035049786,-255.68743637,0.00017291,2]
[401194014,1768035049796,-229.31905987,0.00017291,2]
[401194015,1768035049805,-216.87423394,0.00017291,2]
[401194016,1768035049815,-178.71892515,0.00017291,2]
[401194017,1768035049825,-150.0,0.00017292,2]
[401194018,1768035049835,-159.16121496,0.00017293,2]
[401194019,1768035049845,-150.0,0.00017305,2]
[401194020,1768035049855,-150.0,0.00017308,2]
[401194021,1768035049864,-263.75602621,0.00017309,2]
[401194022,1768035049874,-189.54348929,0.00017309,2]
[401194023,1768035049883,-255.68743637,0.00017309,2]
[401194024,1768035049893,-229.31905987,0.00017309,2]
[401194025,1768035049902,-216.87423394,0.00017309,2]
[401194026,1768035049912,-178.71892515,0.00017309,2]
[401194027,1768035049921,-150.0,0.00017321,2]
[401194028,1768035049932,-150.0,0.00017325,2]
[401194029,1768035049942,-433.0,0.00017325,2]
[401194030,1768035049952,-263.75602621,0.00017327,2]
[401194031,1768035049961,-189.54348929,0.00017327,2]
[401194032,1768035049970,-255.68743637,0.00017327,2]
[401194033,1768035049979,-229.31905987,0.00017327,2]
[401194034,1768035049989,-216.87423394,0.00017327,2]
[401194035,1768035049999,-178.71892515,0.00017327,2]
[401194036,1768035050008,-150.0,0.00017333,2]
[401194037,1768035050018,-561.2,0.00017337,2]
[401194038,1768035050027,-150.0,0.00017342,2]
[401194039,1768035050037,-263.75602621,0.00017345,2]
[401194040,1768035050046,-189.54348929,0.00017345,2]
[401194041,1768035050056,-255.68743637,0.00017345,2]
[401194042,1768035050066,-150.0,0.00017345,2]
[401194043,1768035050076,-229.31905987,0.00017345,2]
[401194044,1768035050085,-216.87423394,0.00017345,2]
[401194045,1768035050095,-178.71892515,0.00017345,2]
[401194046,1768035050104,-150.0,0.00017351,2]
[401194047,1768035050114,-263.75602621,0.00017364,2]
[401194048,1768035050123,-189.54348929,0.00017364,2]
[401194049,1768035050136,-255.68743637,0.00017364,2]
[401194050,1768035050146,-229.31905987,0.00017364,2]
[401194051,1768035050155,-216.87423394,0.00017364,2]
[401194052,1768035050165,-178.71892515,0.00017364,2]
[401194053,1768035050175,-150.0,0.00017377,2]
[401194054,1768035050186,-150.0,0.0001738,2]
[401194055,1768035050195,-263.75602621,0.00017382,2]
[401194056,1768035050204,-189.54348929,0.00017382,2]
[401194057,1768035050214,-255.68743637,0.00017382,2]
[401194058,1768035050224,-229.31905987,0.00017382,2]
[401194059,1768035050233,-216.87423394,0.00017382,2]
[401194060,1768035050243,-178.71892515,0.00017382,2]
[401194061,1768035050252,-5223.79508018,0.00017383,2]
[401194062,1768035050262,-150.0,0.00017386,2]
[401194063,1768035050272,-263.75602621,0.000174,2]
[401194064,1768035050282,-189.54348929,0.000174,2]
[401194065,1768035050291,-255.68743637,0.000174,2]
[401194066,1768035050301,-150.0,0.000174,2]
[401194067,1768035050311,-229.31905987,0.000174,2]
[401194068,1768035050321,-150.0,0.000174,2]
[401194069,1768035050331,-216.87423394,0.000174,2]
[401194070,1768035050340,-150.0,0.000174,2]
[401194071,1768035050350,-150.0,0.000174,2]
[401194072,1768035050360,-150.0,0.000174,2]
[401194073,1768035050370,-178.71892515,0.000174,2]
[401194074,1768035050380,-150.0,0.0001741,2]
[401194075,1768035050389,-561.2,0.00017411,2]
[401194076,1768035050399,-150.0,0.00017412,2]
[401194077,1768035050410,-263.75602621,0.00017418,2]
[401194078,1768035050419,-189.54348929,0.00017418,2]
[401194079,1768035050429,-255.68743637,0.00017418,2]
[401194080,1768035050439,-229.31905987,0.00017418,2]
[401194081,1768035050448,-216.87423394,0.00017418,2]
[401194082,1768035050458,-178.71892515,0.00017418,2]
[401194083,1768035050468,-150.0,0.00017427,2]
[401194084,1768035050478,-170.80877724,0.0001743,2]
[401194085,1768035050488,-417.0,0.00017436,2]
[401194086,1768035050498,-263.75602621,0.00017436,2]
[401194087,1768035050507,-189.54348929,0.00017436,2]
[401194088,1768035050517,-255.68743637,0.00017436,2]
[401194089,1768035050526,-229.31905987,0.00017436,2]
[401194090,1768035050536,-216.87423394,0.00017436,2]
[401194091,1768035050545,-178.71892515,0.00017436,2]
[401194092,1768035050555,-150.0,0.00017437,2]
[401194093,1768035050565,-150.0,0.00017439,2]
[401194094,1768035050575,-150.0,0.00017446,2]
[401194095,1768035050586,-263.75602621,0.00017455,2]
[401194096,1768035050596,-189.54348929,0.00017455,2]
[401194097,1768035050605,-255.68743637,0.00017455,2]
[401194098,1768035050615,-229.31905987,0.00017455,2]
[401194099,1768035050625,-216.87423394,0.00017455,2]
[401194100,1768035050635,-178.71892515,0.00017455,2]
[401194101,1768035050644,-150.0,0.00017467,2]
[401194102,1768035050652,-150.0,0.00017468,2]
[401194103,1768035050661,-150.0,0.00017469,2]
[401194104,1768035050671,-263.75602621,0.00017473,2]
[401194105,1768035050682,-189.54348929,0.00017473,2]
[401194106,1768035050692,-255.68743637,0.00017473,2]
[401194107,1768035050702,-229.31905987,0.00017473,2]
[401194108,1768035050712,-216.87423394,0.00017473,2]
[401194109,1768035050721,-178.71892515,0.00017473,2]
[401194110,1768035050731,-150.0,0.00017481,2]
[401194111,1768035050741,-561.2,0.00017485,2]
[401194112,1768035050751,-263.75602621,0.00017491,2]
[401194113,1768035050760,-189.54348929,0.00017491,2]
[401194114,1768035050770,-255.68743637,0.00017491,2]
[401194115,1768035050780,-229.31905987,0.00017491,2]
[401194116,1768035050789,-216.87423394,0.00017491,2]
[401194117,1768035050798,-178.71892515,0.00017491,2]
[401194118,1768035050809,-150.0,0.00017498,2]
[401194119,1768035050819,-2000.0,0.000175,2]
[401194120,1768035050829,-500.28522811,0.000175,2]
[401194121,1768035050839,-555.32,0.00017507,2]
[401194122,1768035050848,-466.97,0.00017507,2]
[401194123,1768035050857,-466.97,0.00017507,2]
[401194124,1768035050866,-933.68,0.00017507,2]
[401194125,1768035050876,-263.75602621,0.00017509,2]
[401194126,1768035050887,-189.54348929,0.00017509,2]
[401194127,1768035050897,-255.68743637,0.00017509,2]
[401194128,1768035050906,-150.0,0.00017509,2]
[401194129,1768035050915,-229.31905987,0.00017509,2]
[401194130,1768035050925,-216.87423394,0.00017509,2]
[401194131,1768035050934,-178.71892515,0.00017509,2]
[401194132,1768035050944,-150.0,0.00017515,2]
[401194133,1768035050954,-263.75602621,0.00017527,2]
[401194134,1768035050963,-189.54348929,0.00017527,2]
[401194135,1768035050973,-255.68743637,0.00017527,2]
[401194136,1768035050982,-229.31905987,0.00017527,2]
[401194137,1768035050992,-216.87423394,0.00017527,2]
[401194138,1768035051002,-178.71892515,0.00017527,2]
[401194139,1768035051011,-150.0,0.00017528,2]
[401194140,1768035051022,-150.0,0.00017533,2]
[401194141,1768035051031,-600.0,0.00017534,2]
[401194142,1768035051041,-342.8,0.00017534,2]
[401194143,1768035051051,-466.97,0.00017534,2]
[401194144,1768035051060,-350.52,0.00017534,2]
[401194145,1768035051069,-466.97,0.00017534,2]
[401194146,1768035051079,-466.97,0.00017534,2]
[401194147,1768035051089,-466.97,0.00017534,2]
[401194148,1768035051098,-466.97,0.00017534,2]
[401194149,1768035051108,-466.97,0.00017534,2]
[401194150,1768035051117,-466.97,0.00017534,2]
[401194151,1768035051126,-466.97,0.00017534,2]
[401194152,1768035051140,-466.97,0.00017534,2]
[401194153,1768035051150,-466.97,0.00017534,2]
[401194154,1768035051159,-466.97,0.00017534,2]
[401194155,1768035051168,-433.0,0.00017545,2]
[401194156,1768035051180,-263.75602621,0.00017545,2]
[401194157,1768035051189,-189.54348929,0.00017545,2]
[401194158,1768035051198,-255.68743637,0.00017545,2]
[401194159,1768035051209,-229.31905987,0.00017545,2]
[401194160,1768035051219,-216.87423394,0.00017545,2]
[401194161,1768035051229,-178.71892515,0.00017545,2]
[401194162,1768035051240,-417.0,0.00017548,2]
[401194163,1768035051250,-187.78006525,0.0001755,2]
[401194164,1768035051259,-197.9969081,0.0001755,2]
[401194165,1768035051269,-151.0,0.0001755,2]
[401194166,1768035051279,-514.84070869,0.0001755,2]
[401194167,1768035051288,-150.0,0.0001755,2]
[401194168,1768035051299,-150.0,0.0001755,2]
[401194169,1768035051310,-150.0,0.0001755,2]
[401194170,1768035051320,-150.0,0.00017557,2]
[401194171,1768035051330,-561.2,0.00017558,2]
[401194172,1768035051340,-417.0,0.00017561,2]
[401194173,1768035051350,-263.75602621,0.00017564,2]
[401194174,1768035051362,-189.54348929,0.00017564,2]
[401194175,1768035051371,-255.68743637,0.00017564,2]
[401194176,1768035051380,-229.31905987,0.00017564,2]
[401194177,1768035051390,-216.87423394,0.00017564,2]
[401194178,1768035051400,-178.71892515,0.00017564,2]
[401194179,1768035051409,-263.75602621,0.00017582,2]
[401194180,1768035051418,-189.54348929,0.00017582,2]
[401194181,1768035051427,-255.68743637,0.00017582,2]
[401194182,1768035051438,-229.31905987,0.00017582,2]
[401194183,1768035051450,-216.87423394,0.00017582,2]
[401194184,1768035051460,-178.71892515,0.00017582,2]
[401194185,1768035051469,-150.0,0.00017585,2]
[401194186,1768035051479,-150.0,0.00017587,2]
[401194187,1768035051489,-150.0,0.00017591,2]
[401194188,1768035051499,-263.75602621,0.000176,2]
[401194189,1768035051509,-189.54348929,0.000176,2]
[401194190,1768035051519,-255.68743637,0.000176,2]
[401194191,1768035051528,-150.0,0.000176,2]
[401194192,1768035051542,-229.31905987,0.000176,2]
[401194193,1768035051555,-216.87423394,0.000176,2]
[401194194,1768035051565,-150.0,0.000176,2]
[401194195,1768035051576,-150.0,0.000176,2]
[401194196,1768035051586,-178.71892515,0.000176,2]
[401194197,1768035051598,-433.0,0.00017608,2]
[401194198,1768035051609,-150.0,0.00017616,2]
[401194199,1768035051618,-263.75602621,0.00017618,2]
[401194200,1768035051628,-189.54348929,0.00017618,2]
[401194201,1768035051638,-255.68743637,0.00017618,2]
[401194202,1768035051648,-229.31905987,0.00017618,2]
[401194203,1768035051658,-216.87423394,0.00017618,2]
[401194204,1768035051667,-178.71892515,0.00017618,2]
[401194205,1768035051677,-150.0,0.00017619,2]
[401194206,1768035051686,-150.0,0.00017632,2]
[401194207,1768035051696,-561.2,0.00017632,2]
[401194208,1768035051705,-263.75602621,0.00017636,2]
[401194209,1768035051715,-189.54348929,0.00017636,2]
[401194210,1768035051724,-255.68743637,0.00017636,2]
[401194211,1768035051734,-229.31905987,0.00017636,2]
[401194212,1768035051748,-216.87423394,0.00017636,2]
[401194213,1768035051757,-178.71892515,0.00017636,2]
[401194214,1768035051767,-150.0,0.0001764,2]
[401194215,1768035051777,-10537.80982193,0.0001764,2]
[401194216,1768035051786,-5223.79508018,0.00017642,2]
[401194217,1768035051796,-150.0,0.00017646,2]
[401194218,1768035051806,-150.0,0.00017654,2]
[401194219,1768035051815,-263.75602621,0.00017655,2]
[401194220,1768035051825,-189.54348929,0.00017655,2]
[401194221,1768035051835,-255.68743637,0.00017655,2]
[401194222,1768035051845,-229.31905987,0.00017655,2]
[401194223,1768035051854,-216.87423394,0.00017655,2]
[401194224,1768035051864,-178.71892515,0.00017655,2]
[401194225,1768035051874,-150.0,0.00017662,2]
[401194226,1768035051884,-150.0,0.00017667,2]
[401194227,1768035051895,-263.75602621,0.00017673,2]
[401194228,1768035051905,-189.54348929,0.00017673,2]
[401194229,1768035051915,-255.68743637,0.00017673,2]
[401194230,1768035051925,-150.0,0.00017673,2]
[401194231,1768035051935,-229.31905987,0.00017673,2]
[401194232,1768035051948,-216.87423394,0.00017673,2]
[401194233,1768035051958,-178.71892515,0.00017673,2]
[401194234,1768035051967,-150.0,0.00017675,2]
[401194235,1768035051976,-150.0,0.00017688,2]
[401194236,1768035051987,-263.75602621,0.00017691,2]
[401194237,1768035051997,-189.54348929,0.00017691,2]
[401194238,1768035052007,-255.68743637,0.00017691,2]
[401194239,1768035052017,-229.31905987,0.00017691,2]
[401194240,1768035052027,-216.87423394,0.00017691,2]
[401194241,1768035052037,-178.71892515,0.00017691,2]
[401194242,1768035052047,-1000.0,0.00017694,2]
[401194243,1768035052056,-150.0,0.000177,2]
[401194244,1768035052066,-1000.0,0.000177,2]
[401194245,1768035052077,-150.0,0.00017705,2]
[401194246,1768035052087,-561.2,0.00017705,2]
[401194247,1768035052096,-263.75602621,0.00017709,2]
[401194248,1768035052108,-189.54348929,0.00017709,2]
[401194249,1768035052117,-255.68743637,0.00017709,2]
[401194250,1768035052128,-229.31905987,0.00017709,2]
[401194251,1768035052142,-216.87423394,0.00017709,2]
[401194252,1768035052151,-178.71892515,0.00017709,2]
[401194253,1768035052162,-150.0,0.00017714,2]
[401194254,1768035052172,-150.0,0.00017723,2]
[401194255,1768035052181,-263.75602621,0.00017727,2]
[401194256,1768035052191,-189.54348929,0.00017727,2]
[401194257,1768035052201,-255.68743637,0.00017727,2]
[401194258,1768035052211,-229.31905987,0.00017727,2]
[401194259,1768035052221,-216.87423394,0.00017727,2]
[401194260,1768035052232,-178.71892515,0.00017727,2]
[401194261,1768035052242,-7554.21886386,0.0001773,2]
[401194262,1768035052253,-417.0,0.00017733,2]
[401194263,1768035052263,-150.0,0.00017733,2]
[401194264,1768035052273,-150.0,0.00017734,2]
[401194265,1768035052283,-263.75602621,0.00017745,2]
[401194266,1768035052292,-189.54348929,0.00017745,2]
[401194267,1768035052303,-255.68743637,0.00017745,2]
[401194268,1768035052313,-229.31905987,0.00017745,2]
[401194269,1768035052323,-216.87423394,0.00017745,2]
[401194270,1768035052342,-178.71892515,0.00017745,2]
[401194271,1768035052358,-150.0,0.00017755,2]
[401194272,1768035052368,-150.0,0.00017758,2]
[401194273,1768035052379,-399.622,0.00017758,2]
[401194274,1768035052389,-263.75602621,0.00017764,2]
[401194275,1768035052399,-189.54348929,0.00017764,2]
[401194276,1768035052410,-255.68743637,0.00017764,2]
[401194277,1768035052421,-229.31905987,0.00017764,2]
[401194278,1768035052432,-216.87423394,0.00017764,2]
[401194279,1768035052443,-178.71892515,0.00017764,2]
[401194280,1768035052453,-150.0,0.00017764,2]
[401194281,1768035052463,-150.0,0.00017775,2]
[401194282,1768035052474,-561.2,0.00017779,2]
[401194283,1768035052485,-263.75602621,0.00017782,2]
[401194284,1768035052496,-189.54348929,0.00017782,2]
[401194285,1768035052507,-255.68743637,0.00017782,2]
[401194286,1768035052517,-229.31905987,0.00017782,2]
[401194287,1768035052528,-216.87423394,0.00017782,2]
[401194288,1768035052539,-178.71892515,0.00017782,2]
[401194289,1768035052549,-150.0,0.00017792,2]
[401194290,1768035052559,-150.0,0.00017793,2]
[401194291,1768035052570,-150.0,0.00017795,2]
[401194292,1768035052581,-263.75602621,0.000178,2]
[401194293,1768035052592,-189.54348929,0.000178,2]
[401194294,1768035052603,-255.68743637,0.000178,2]
[401194295,1768035052614,-150.0,0.000178,2]
[401194296,1768035052624,-229.31905987,0.000178,2]
[401194297,1768035052634,-216.87423394,0.000178,2]
[401194298,1768035052645,-150.0,0.000178,2]
[401194299,1768035052654,-150.0,0.000178,2]
[401194300,1768035052664,-178.71892515,0.000178,2]
[401194301,1768035052674,-1000.0,0.000178,2]
[401194302,1768035052685,-500.0,0.00017808,2]
[401194303,1768035052695,-207.26988174,0.00017808,2]
[401194304,1768035052706,-417.0,0.00017808,2]
[401194305,1768035052716,-263.75602621,0.00017818,2]
[401194306,1768035052727,-189.54348929,0.00017818,2]
[401194307,1768035052737,-255.68743637,0.00017818,2]
[401194308,1768035052747,-229.31905987,0.00017818,2]
[401194309,1768035052758,-216.87423394,0.00017818,2]
[401194310,1768035052768,-178.71892515,0.00017818,2]
[401194311,1768035052778,-4068.68485,0.0001782,2]
[401194312,1768035052789,-4068.68485,0.0001782,2]
[401194313,1768035052800,-159.35537069,0.0001782,2]
[401194314,1768035052810,-150.0,0.00017823,2]
[401194315,1768035052823,-150.0,0.00017827,2]
[401194316,1768035052834,-24666.13896743,0.0001783,2]
[401194317,1768035052844,-4068.68486,0.0001783,2]
[401194318,1768035052856,-263.75602621,0.00017836,2]
[401194319,1768035052867,-189.54348929,0.00017836,2]
[401194320,1768035052877,-255.68743637,0.00017836,2]
[401194321,1768035052887,-150.0,0.00017836,2]
[401194322,1768035052897,-229.31905987,0.00017836,2]
[401194323,1768035052907,-216.87423394,0.00017836,2]
[401194324,1768035052917,-178.71892515,0.00017836,2]
[401194325,1768035052927,-150.0,0.00017852,2]
[401194326,1768035052938,-561.2,0.00017853,2]
[401194327,1768035052949,-263.75602621,0.00017855,2]
[401194328,1768035052960,-189.54348929,0.00017855,2]
[401194329,1768035052970,-255.68743637,0.00017855,2]
[401194330,1768035052981,-229.31905987,0.00017855,2]
[401194331,1768035052994,-216.87423394,0.00017855,2]
[401194332,1768035053004,-178.71892515,0.00017855,2]
[401194333,1768035053014,-200.0,0.00017855,2]
[401194334,1768035053025,-2000.0,0.00017856,2]
[401194335,1768035053035,-200.0,0.00017856,2]
[401194336,1768035053046,-200.0,0.00017856,2]
[401194337,1768035053056,-4068.68485,0.0001786,2]
[401194338,1768035053066,-150.0,0.00017862,2]
[401194339,1768035053077,-501.30688292,0.00017863,2]
[401194340,1768035053087,-150.0,0.00017867,2]
[401194341,1768035053098,-1514.73825484,0.00017871,2]
[401194342,1768035053108,-2464.03631718,0.00017871,2]
[401194343,1768035053119,-3479.95468316,0.00017871,2]
[401194344,1768035053132,-4502.9853,0.00017871,2]
[401194345,1768035053143,-263.75602621,0.00017873,2]
[401194346,1768035053154,-189.54348929,0.00017873,2]
[401194347,1768035053164,-255.68743637,0.00017873,2]
[401194348,1768035053176,-229.31905987,0.00017873,2]
[401194349,1768035053186,-216.87423394,0.00017873,2]
[401194350,1768035053197,-178.71892515,0.00017873,2]
[401194351,1768035053209,-336.3803781,0.00017873,2]
[401194352,1768035053220,-150.0,0.00017877,2]
[401194353,1768035053230,-4068.68486,0.0001788,2]
[401194354,1768035053241,-150.0,0.00017882,2]
[401194355,1768035053251,-336.38037809,0.00017887,2]
[401194356,1768035053262,-150.0,0.00017887,2]